[Event "*** Titled Tuesday Blitz"]
[Site "Chess.com"]
[Date "2019.05.07"]
[Round "3"]
[White "H3nriqueTV"]
[Black "AlexandraBotez"]
[Result "0-1"]
[WhiteElo "1999"]
[BlackElo "1994"]
[TimeControl "180+2"]
[EndTime "13:38:05 PDT"]
[Termination "AlexandraBotez won by resignation"]

1. b3 {[%clk 0:03:01.9]} 1... Nf6 {[%clk 0:02:58]} 2. Bb2 {[%clk 0:03:01.1]}
2... e6 {[%clk 0:02:58.7]} 3. g3 {[%clk 0:02:59.9]} 3... d5 {[%clk 0:02:58.6]}
4. Bg2 {[%clk 0:03:01]} 4... c5 {[%clk 0:02:58.1]} 5. d3 {[%clk 0:03:01.7]} 5...
Nc6 {[%clk 0:02:57.2]} 6. Nf3 {[%clk 0:02:59.5]} 6... Be7 {[%clk 0:02:55.5]} 7.
O-O {[%clk 0:03:00.4]} 7... O-O {[%clk 0:02:56.4]} 8. Nbd2 {[%clk 0:02:57.9]}
8... Rb8 {[%clk 0:02:57]} 9. e4 {[%clk 0:02:56.4]} 9... b5 {[%clk 0:02:52.5]}
10. exd5 {[%clk 0:02:40.8]} 10... exd5 {[%clk 0:02:50.8]} 11. c4 {[%clk
0:02:40.2]} 11... bxc4 {[%clk 0:02:47.4]} 12. dxc4 {[%clk 0:02:39.4]} 12... d4
{[%clk 0:02:45.5]} 13. Re1 {[%clk 0:02:38.6]} 13... Nb4 {[%clk 0:02:39.5]} 14.
Ne5 {[%clk 0:01:46]} 14... Bd6 {[%clk 0:02:29.3]} 15. a3 {[%clk 0:01:42.1]}
15... Bxe5 {[%clk 0:02:12.6]} 16. axb4 {[%clk 0:01:40.5]} 16... Bd6 {[%clk
0:02:06.7]} 17. b5 {[%clk 0:01:23]} 17... Qc7 {[%clk 0:02:00.7]} 18. Ne4 {[%clk
0:01:18.3]} 18... Nxe4 {[%clk 0:01:59.2]} 19. Bxe4 {[%clk 0:01:18.9]} 19... f5
{[%clk 0:01:51]} 20. Bd5+ {[%clk 0:01:19.4]} 20... Kh8 {[%clk 0:01:51.8]} 21.
Qh5 {[%clk 0:01:05]} 21... Be5 {[%clk 0:01:39.2]} 22. f4 {[%clk 0:00:53.6]}
22... Bf6 {[%clk 0:01:35.5]} 23. Re8 {[%clk 0:00:46.2]} 23... Bd7 {[%clk
0:01:31.1]} 24. Rxf8+ {[%clk 0:00:47]} 24... Rxf8 {[%clk 0:01:31.7]} 25. Ra6
{[%clk 0:00:45.7]} 25... Bc8 {[%clk 0:01:26.2]} 26. Rc6 {[%clk 0:00:41.9]} 26...
Qe7 {[%clk 0:01:27.2]} 27. Qf3 {[%clk 0:00:33.3]} 27... Re8 {[%clk 0:01:13]} 28.
Ba3 {[%clk 0:00:32.2]} 28... Qe1+ {[%clk 0:01:13.1]} 29. Kg2 {[%clk 0:00:30.3]}
29... Qd2+ {[%clk 0:00:51.2]} 30. Kh3 {[%clk 0:00:29.3]} 30... d3 {[%clk
0:00:52]} 31. Bxc5 {[%clk 0:00:27.1]} 31... Qe2 {[%clk 0:00:52.8]} 32. Rxc8
{[%clk 0:00:20.5]} 32... Rxc8 {[%clk 0:00:52.2]} 33. Qxe2 {[%clk 0:00:21.5]}
33... dxe2 {[%clk 0:00:53.3]} 34. Bf2 {[%clk 0:00:21.3]} 34... Bc3 {[%clk
0:00:53.5]} 35. c5 {[%clk 0:00:19.6]} 35... e1=Q {[%clk 0:00:54.5]} 36. Bxe1
{[%clk 0:00:21.1]} 36... Bxe1 {[%clk 0:00:55.7]} 37. b6 {[%clk 0:00:22.3]} 37...
axb6 {[%clk 0:00:56.3]} 38. cxb6 {[%clk 0:00:24.2]} 38... Rb8 {[%clk 0:00:57.4]}
39. b7 {[%clk 0:00:26.1]} 0-1

[Event "*** Titled Tuesday Blitz"]
[Site "Chess.com"]
[Date "2019.05.07"]
[Round "3"]
[White "ZuchBolt"]
[Black "Misha_Bilous"]
[Result "1-0"]
[WhiteElo "2283"]
[BlackElo "2289"]
[TimeControl "180+2"]
[EndTime "13:38:07 PDT"]
[Termination "ZuchBolt won on time"]

1. d4 {[%clk 0:03:01.9]} 1... Nf6 {[%clk 0:02:56.6]} 2. c4 {[%clk 0:03:02.5]}
2... g6 {[%clk 0:02:55.5]} 3. Nc3 {[%clk 0:03:02.7]} 3... Bg7 {[%clk 0:02:56.9]}
4. e4 {[%clk 0:03:03.4]} 4... d6 {[%clk 0:02:58.4]} 5. Be2 {[%clk 0:03:04.3]}
5... O-O {[%clk 0:02:59]} 6. Bg5 {[%clk 0:03:04.9]} 6... c5 {[%clk 0:03:00.4]}
7. d5 {[%clk 0:03:05]} 7... h6 {[%clk 0:02:31.1]} 8. Bf4 {[%clk 0:03:05.4]} 8...
e6 {[%clk 0:02:23.2]} 9. Nf3 {[%clk 0:03:05.3]} 9... exd5 {[%clk 0:01:52.8]} 10.
exd5 {[%clk 0:03:07.2]} 10... a6 {[%clk 0:01:41]} 11. O-O {[%clk 0:03:05.3]}
11... Re8 {[%clk 0:01:35.3]} 12. Qd2 {[%clk 0:03:05.1]} 12... Kh7 {[%clk
0:01:35.7]} 13. Rfe1 {[%clk 0:03:05.4]} 13... Bf5 {[%clk 0:01:26]} 14. Bf1
{[%clk 0:02:58.4]} 14... Ne4 {[%clk 0:01:24.5]} 15. Nxe4 {[%clk 0:02:58.3]}
15... Bxe4 {[%clk 0:01:25.6]} 16. Re3 {[%clk 0:02:43.2]} 16... Qf6 {[%clk
0:01:18.7]} 17. Bg3 {[%clk 0:02:38.3]} 17... Qxb2 {[%clk 0:00:38.1]} 18. Qxb2
{[%clk 0:02:38.3]} 18... Bxb2 {[%clk 0:00:40]} 19. Rae1 {[%clk 0:02:39.7]} 19...
f5 {[%clk 0:00:40]} 20. Nd2 {[%clk 0:02:35]} 20... Nd7 {[%clk 0:00:12.9]} 21.
Bxd6 {[%clk 0:02:22.9]} 21... Bd4 {[%clk 0:00:13.2]} 22. Rb3 {[%clk 0:02:10.6]}
22... b6 {[%clk 0:00:11.4]} 23. Nxe4 {[%clk 0:02:04.9]} 23... fxe4 {[%clk
0:00:12]} 24. Bc7 {[%clk 0:01:41.4]} 24... Nf6 {[%clk 0:00:12.1]} 25. Rxb6
{[%clk 0:01:28]} 25... Ng4 {[%clk 0:00:13]} 26. Bg3 {[%clk 0:01:28.7]} 26... e3
{[%clk 0:00:11.7]} 27. fxe3 {[%clk 0:01:26.8]} 27... Nxe3 {[%clk 0:00:11.6]} 28.
Bf2 {[%clk 0:01:13.3]} 28... Nxc4 {[%clk 0:00:04.8]} 29. Rb7+ {[%clk 0:01:08.6]}
29... Kg8 {[%clk 0:00:02.8]} 30. Rxe8+ {[%clk 0:01:09.1]} 30... Rxe8 {[%clk
0:00:04.7]} 31. Bxc4 {[%clk 0:00:56.9]} 31... Re1+ {[%clk 0:00:02.7]} 32. Bf1
{[%clk 0:00:58]} 1-0

[Event "*** Titled Tuesday Blitz"]
[Site "Chess.com"]
[Date "2019.05.07"]
[Round "3"]
[White "Philosopherrr"]
[Black "Sutormin_DA"]
[Result "0-1"]
[WhiteElo "2510"]
[BlackElo "2529"]
[TimeControl "180+2"]
[EndTime "13:38:08 PDT"]
[Termination "Sutormin_DA won by resignation"]

1. e4 {[%clk 0:03:01.9]} 1... c5 {[%clk 0:02:56.9]} 2. Nf3 {[%clk 0:03:02.5]}
2... e6 {[%clk 0:02:58.2]} 3. d4 {[%clk 0:03:03.5]} 3... cxd4 {[%clk 0:02:59.8]}
4. Nxd4 {[%clk 0:03:05.4]} 4... Nc6 {[%clk 0:03:01.5]} 5. Nc3 {[%clk 0:03:06.4]}
5... Qc7 {[%clk 0:03:02.9]} 6. g3 {[%clk 0:03:07.8]} 6... Nf6 {[%clk 0:03:02.8]}
7. Bg2 {[%clk 0:03:09.1]} 7... Be7 {[%clk 0:03:04.3]} 8. O-O {[%clk 0:03:10.3]}
8... d6 {[%clk 0:03:01.3]} 9. Re1 {[%clk 0:03:06.8]} 9... a6 {[%clk 0:03:01.5]}
10. Nxc6 {[%clk 0:03:07.3]} 10... bxc6 {[%clk 0:03:01.1]} 11. e5 {[%clk
0:03:08.8]} 11... dxe5 {[%clk 0:03:00.1]} 12. Rxe5 {[%clk 0:03:09.2]} 12... O-O
{[%clk 0:03:00.4]} 13. Bf4 {[%clk 0:03:09.8]} 13... Bd6 {[%clk 0:02:24.9]} 14.
Rxe6 {[%clk 0:03:10.7]} 14... Bxf4 {[%clk 0:02:00.6]} 15. Rxc6 {[%clk
0:03:11.4]} 15... Qb8 {[%clk 0:01:57]} 16. Rxf6 {[%clk 0:03:06.8]} 16... gxf6
{[%clk 0:01:54.4]} 17. Bxa8 {[%clk 0:02:58.8]} 17... Be5 {[%clk 0:01:40.8]} 18.
Be4 {[%clk 0:00:48.5]} 18... Qxb2 {[%clk 0:01:36.5]} 19. Rb1 {[%clk 0:00:14.6]}
19... Qxc3 {[%clk 0:01:37]} 20. Qh5 {[%clk 0:00:15.8]} 20... f5 {[%clk
0:01:34.1]} 21. Bxf5 {[%clk 0:00:14.9]} 21... Bxf5 {[%clk 0:01:35.7]} 22. Qxf5
{[%clk 0:00:15.1]} 22... Bg7 {[%clk 0:01:37.6]} 23. h4 {[%clk 0:00:15.8]} 23...
Rc8 {[%clk 0:01:29.9]} 24. Rd1 {[%clk 0:00:14.9]} 24... Re8 {[%clk 0:01:27.9]}
25. Rd7 {[%clk 0:00:14.5]} 25... Qf6 {[%clk 0:01:24.7]} 26. Qd5 {[%clk
0:00:14.6]} 26... Qe6 {[%clk 0:01:24.4]} 27. Qd3 {[%clk 0:00:13.3]} 27... Qe1+
{[%clk 0:01:24.5]} 28. Kg2 {[%clk 0:00:14.1]} 28... Qe4+ {[%clk 0:01:25.7]} 29.
Qxe4 {[%clk 0:00:15.5]} 29... Rxe4 {[%clk 0:01:27.5]} 30. Rd8+ {[%clk 0:00:17]}
30... Bf8 {[%clk 0:01:29]} 31. Ra8 {[%clk 0:00:18.5]} 31... Ra4 {[%clk
0:01:29.8]} 32. Rc8 {[%clk 0:00:18.6]} 32... Rxa2 {[%clk 0:01:30.7]} 33. c4
{[%clk 0:00:19.7]} 33... Rc2 {[%clk 0:01:28.2]} 34. Ra8 {[%clk 0:00:19.2]} 34...
Kg7 {[%clk 0:01:27.9]} 35. Rxa6 {[%clk 0:00:19.7]} 35... Bc5 {[%clk 0:01:29.4]}
36. Kh3 {[%clk 0:00:19.7]} 36... Bxf2 {[%clk 0:01:28.5]} 37. Ra4 {[%clk
0:00:20.9]} 37... Rc3 {[%clk 0:01:29.3]} 38. Kg2 {[%clk 0:00:22.2]} 38... Bxg3
{[%clk 0:01:29.8]} 39. h5 {[%clk 0:00:23.8]} 39... Bf4 {[%clk 0:01:25.3]} 40. c5
{[%clk 0:00:22.9]} 40... Be5 {[%clk 0:01:26]} 41. Rg4+ {[%clk 0:00:22.1]} 41...
Kh6 {[%clk 0:01:25.9]} 0-1

[Event "*** Titled Tuesday Blitz"]
[Site "Chess.com"]
[Date "2019.05.07"]
[Round "3"]
[White "Benjoneliere44"]
[Black "TheGandhiOfChess"]
[Result "1-0"]
[WhiteElo "2488"]
[BlackElo "2242"]
[TimeControl "180+2"]
[EndTime "13:38:09 PDT"]
[Termination "Benjoneliere44 won by resignation"]

1. e4 {[%clk 0:03:01.9]} 1... e5 {[%clk 0:02:54.9]} 2. Nf3 {[%clk 0:03:02.7]}
2... Nc6 {[%clk 0:02:56.8]} 3. Bb5 {[%clk 0:03:02.9]} 3... Nf6 {[%clk
0:02:58.2]} 4. O-O {[%clk 0:03:03.4]} 4... Nxe4 {[%clk 0:02:58.8]} 5. d4 {[%clk
0:03:04.6]} 5... Nd6 {[%clk 0:02:59.9]} 6. Bxc6 {[%clk 0:03:06]} 6... dxc6
{[%clk 0:02:59.7]} 7. dxe5 {[%clk 0:03:07.9]} 7... Nf5 {[%clk 0:03:00.7]} 8.
Qxd8+ {[%clk 0:03:09.8]} 8... Kxd8 {[%clk 0:03:02.3]} 9. h3 {[%clk 0:03:11.7]}
9... Be7 {[%clk 0:03:02.9]} 10. Nc3 {[%clk 0:03:12.8]} 10... Nh4 {[%clk
0:03:03.5]} 11. Nxh4 {[%clk 0:03:11.8]} 11... Bxh4 {[%clk 0:03:04.5]} 12. Ne4
{[%clk 0:03:01.3]} 12... Bf5 {[%clk 0:03:00.7]} 13. Bg5+ {[%clk 0:03:01.1]}
13... Ke8 {[%clk 0:02:51.4]} 14. Nf6+ {[%clk 0:02:54.1]} 14... gxf6 {[%clk
0:02:49.6]} 15. Bxh4 {[%clk 0:02:56]} 15... fxe5 {[%clk 0:02:50.4]} 16. Rfe1
{[%clk 0:02:57.3]} 16... e4 {[%clk 0:02:47.9]} 17. g4 {[%clk 0:02:43.6]} 17...
Bg6 {[%clk 0:02:47.2]} 18. Bf6 {[%clk 0:02:41.8]} 18... Rg8 {[%clk 0:02:46.5]}
19. f4 {[%clk 0:02:40.9]} 19... Kd7 {[%clk 0:02:20.5]} 20. Kf2 {[%clk
0:02:39.1]} 20... Ke6 {[%clk 0:02:21.5]} 21. Be5 {[%clk 0:02:33.2]} 21... f5
{[%clk 0:02:14.8]} 22. Bxc7 {[%clk 0:02:32.6]} 22... Rg7 {[%clk 0:02:09.9]} 23.
Be5 {[%clk 0:02:31.8]} 23... Rd7 {[%clk 0:02:10.8]} 24. Ke3 {[%clk 0:02:25.2]}
24... Rad8 {[%clk 0:02:07.2]} 25. Re2 {[%clk 0:02:26.5]} 25... Rd1 {[%clk
0:02:01.4]} 26. Rxd1 {[%clk 0:02:26.7]} 26... Rxd1 {[%clk 0:02:02]} 27. Rd2
{[%clk 0:02:13.1]} 27... Rxd2 {[%clk 0:01:53.2]} 28. Kxd2 {[%clk 0:02:15]} 28...
h5 {[%clk 0:01:54.6]} 29. g5 {[%clk 0:02:11.2]} 29... Kd5 {[%clk 0:01:49]} 30.
h4 {[%clk 0:02:10.1]} 30... c5 {[%clk 0:01:47.7]} 31. Kc3 {[%clk 0:02:09.8]}
31... b5 {[%clk 0:01:48.2]} 32. b3 {[%clk 0:02:06.7]} 32... a5 {[%clk
0:01:48.6]} 33. a4 {[%clk 0:02:05.9]} 33... bxa4 {[%clk 0:01:45.3]} 34. bxa4
{[%clk 0:02:06.5]} 34... Be8 {[%clk 0:01:42]} 35. Bc7 {[%clk 0:02:06.8]} 35...
Bxa4 {[%clk 0:01:40.5]} 36. g6 {[%clk 0:02:07.9]} 36... Be8 {[%clk 0:01:38.2]}
37. g7 {[%clk 0:02:08.7]} 37... Bf7 {[%clk 0:01:39.5]} 38. Bxa5 {[%clk
0:02:09.9]} 38... Bg8 {[%clk 0:01:39]} 39. Bc7 {[%clk 0:02:01.1]} 39... Kc6
{[%clk 0:01:37]} 40. Be5 {[%clk 0:02:01.9]} 40... Kd5 {[%clk 0:01:38]} 41. Kb3
{[%clk 0:02:03.2]} 41... e3 {[%clk 0:01:36]} 42. Kc3 {[%clk 0:02:01.7]} 42...
Ke4 {[%clk 0:01:37.2]} 43. Bd6 {[%clk 0:02:02.7]} 43... Kf3 {[%clk 0:01:34.1]}
44. Bxc5 {[%clk 0:02:00.8]} 44... Kxf4 {[%clk 0:01:34]} 45. Kd3 {[%clk
0:02:02.1]} 45... Kg4 {[%clk 0:01:29.5]} 46. Bxe3 {[%clk 0:02:02.5]} 46... f4
{[%clk 0:01:24.5]} 47. Bf2 {[%clk 0:01:54.5]} 47... Kf3 {[%clk 0:01:25.2]} 48.
Be1 {[%clk 0:01:46.5]} 48... Kg2 {[%clk 0:01:12.3]} 49. c4 {[%clk 0:01:41.8]}
49... Kf1 {[%clk 0:01:13.3]} 50. Bc3 {[%clk 0:01:35]} 50... f3 {[%clk
0:01:11.7]} 51. Bd4 {[%clk 0:01:36.2]} 1-0

[Event "*** Titled Tuesday Blitz"]
[Site "Chess.com"]
[Date "2019.05.07"]
[Round "3"]
[White "FearNoEvil12"]
[Black "HrvojeZagreb"]
[Result "1-0"]
[WhiteElo "2014"]
[BlackElo "2019"]
[TimeControl "180+2"]
[EndTime "13:38:09 PDT"]
[Termination "FearNoEvil12 won by resignation"]

1. e4 {[%clk 0:03:01.9]} 1... e6 {[%clk 0:02:57]} 2. d4 {[%clk 0:03:02.3]} 2...
d5 {[%clk 0:02:57.7]} 3. Nc3 {[%clk 0:03:03.7]} 3... dxe4 {[%clk 0:02:59.4]} 4.
Nxe4 {[%clk 0:03:03.9]} 4... Nd7 {[%clk 0:03:01.3]} 5. Nf3 {[%clk 0:03:04]} 5...
Ngf6 {[%clk 0:03:03.2]} 6. Bd3 {[%clk 0:03:04.4]} 6... Be7 {[%clk 0:03:04.4]} 7.
Qe2 {[%clk 0:03:03.5]} 7... b6 {[%clk 0:03:04.6]} 8. Ne5 {[%clk 0:02:55.5]} 8...
Bb7 {[%clk 0:03:04.7]} 9. f3 {[%clk 0:02:53.6]} 9... O-O {[%clk 0:03:04.1]} 10.
Be3 {[%clk 0:02:47.4]} 10... Nxe5 {[%clk 0:03:00.6]} 11. dxe5 {[%clk 0:02:47.2]}
11... Nxe4 {[%clk 0:03:02.5]} 12. O-O-O {[%clk 0:02:39.7]} 12... Nc5 {[%clk
0:02:56.4]} 13. Bxh7+ {[%clk 0:02:38.5]} 13... Kxh7 {[%clk 0:02:58.3]} 14. Rxd8
{[%clk 0:02:38.2]} 14... Raxd8 {[%clk 0:03:00.1]} 15. h4 {[%clk 0:02:36.1]}
15... Rh8 {[%clk 0:02:49.6]} 16. Qf2 {[%clk 0:02:23.2]} 16... Kg8 {[%clk
0:02:42.4]} 17. Qg3 {[%clk 0:02:23.5]} 17... Kf8 {[%clk 0:02:42]} 18. h5 {[%clk
0:02:23.6]} 18... a5 {[%clk 0:02:16.2]} 19. h6 {[%clk 0:02:22.9]} 19... gxh6
{[%clk 0:02:05.3]} 20. Bxh6+ {[%clk 0:02:21.3]} 20... Ke8 {[%clk 0:02:06]} 21.
Qg7 {[%clk 0:02:18.4]} 21... Kd7 {[%clk 0:02:04.6]} 22. Rd1+ {[%clk 0:02:09.2]}
22... Kc8 {[%clk 0:02:02.9]} 23. Rxd8+ {[%clk 0:02:06.9]} 23... Rxd8 {[%clk
0:02:00.3]} 24. Qxf7 {[%clk 0:02:06.6]} 24... Rd7 {[%clk 0:01:49]} 25. Qe8+
{[%clk 0:02:03.5]} 25... Bd8 {[%clk 0:01:50]} 26. Be3 {[%clk 0:01:58.8]} 26...
Rd5 {[%clk 0:01:44.1]} 27. f4 {[%clk 0:01:52.2]} 27... Rd7 {[%clk 0:01:34.1]}
28. g4 {[%clk 0:01:49.8]} 28... Bf3 {[%clk 0:01:31.2]} 29. b4 {[%clk 0:01:43]}
29... axb4 {[%clk 0:01:30]} 30. Bxc5 {[%clk 0:01:39.4]} 30... bxc5 {[%clk
0:01:30.9]} 31. Qxe6 {[%clk 0:01:39.1]} 31... Be2 {[%clk 0:01:19.5]} 32. g5
{[%clk 0:01:35.3]} 32... Bb5 {[%clk 0:01:09.2]} 33. g6 {[%clk 0:01:29.9]} 33...
Kb7 {[%clk 0:01:09]} 34. f5 {[%clk 0:01:23.5]} 34... Bg5+ {[%clk 0:01:09.8]} 35.
Kb2 {[%clk 0:01:22.8]} 35... c4 {[%clk 0:01:07.9]} 36. Qxd7 {[%clk 0:01:17]}
36... Bxd7 {[%clk 0:01:08]} 37. g7 {[%clk 0:01:18.5]} 37... Bf4 {[%clk
0:01:02.4]} 38. g8=Q {[%clk 0:01:17]} 38... Bxe5+ {[%clk 0:01:03.5]} 39. Kb1
{[%clk 0:01:17.6]} 39... c6 {[%clk 0:00:40]} 40. Qxc4 {[%clk 0:01:15.3]} 40...
Bc3 {[%clk 0:00:40]} 41. Qf7 {[%clk 0:01:09.9]} 41... Kc8 {[%clk 0:00:38.3]} 42.
f6 {[%clk 0:01:10.7]} 42... Bf5 {[%clk 0:00:36.7]} 43. Qe8+ {[%clk 0:01:09]}
43... Kc7 {[%clk 0:00:36.4]} 44. f7 {[%clk 0:01:09.8]} 44... b3 {[%clk
0:00:37.2]} 45. axb3 {[%clk 0:01:08.9]} 1-0

[Event "*** Titled Tuesday Blitz"]
[Site "Chess.com"]
[Date "2019.05.07"]
[Round "3"]
[White "hansen"]
[Black "Szparu"]
[Result "1-0"]
[WhiteElo "2769"]
[BlackElo "2510"]
[TimeControl "180+2"]
[EndTime "13:38:10 PDT"]
[Termination "hansen won by resignation"]

1. e4 {[%clk 0:02:57.9]} 1... c5 {[%clk 0:02:59.5]} 2. Nf3 {[%clk 0:02:58.4]}
2... Nc6 {[%clk 0:03:00.5]} 3. Bb5 {[%clk 0:02:59]} 3... g6 {[%clk 0:02:59.2]}
4. O-O {[%clk 0:02:59.4]} 4... Bg7 {[%clk 0:03:00]} 5. Bxc6 {[%clk 0:03:00.1]}
5... bxc6 {[%clk 0:02:56.2]} 6. h3 {[%clk 0:02:53.1]} 6... d6 {[%clk 0:02:52.4]}
7. c3 {[%clk 0:02:46.1]} 7... Nf6 {[%clk 0:02:39.6]} 8. Re1 {[%clk 0:02:43.6]}
8... O-O {[%clk 0:02:40.5]} 9. d4 {[%clk 0:02:44.2]} 9... cxd4 {[%clk
0:02:39.2]} 10. cxd4 {[%clk 0:02:46.1]} 10... Nd7 {[%clk 0:02:31.8]} 11. Nc3
{[%clk 0:02:46.5]} 11... c5 {[%clk 0:02:31.4]} 12. Be3 {[%clk 0:02:46.4]} 12...
cxd4 {[%clk 0:02:31.8]} 13. Bxd4 {[%clk 0:02:46.8]} 13... Nf6 {[%clk 0:02:28.6]}
14. e5 {[%clk 0:02:47.8]} 14... dxe5 {[%clk 0:02:28.2]} 15. Nxe5 {[%clk
0:02:44.6]} 15... Be6 {[%clk 0:02:19.5]} 16. Qa4 {[%clk 0:02:42.7]} 16... Qe8
{[%clk 0:01:47.4]} 17. Qa5 {[%clk 0:02:37.4]} 17... Qd8 {[%clk 0:01:42.5]} 18.
Qa4 {[%clk 0:02:29.4]} 18... Qe8 {[%clk 0:01:42.6]} 19. Qa3 {[%clk 0:02:22.2]}
19... Nd7 {[%clk 0:00:54.2]} 20. Nc6 {[%clk 0:02:17.2]} 20... Bf6 {[%clk
0:00:42.1]} 21. Rad1 {[%clk 0:02:00]} 21... Nb6 {[%clk 0:00:40.6]} 22. Bxf6
{[%clk 0:01:55.5]} 22... exf6 {[%clk 0:00:42.5]} 23. Ne7+ {[%clk 0:01:46.5]}
23... Kg7 {[%clk 0:00:40.9]} 24. Ne4 {[%clk 0:01:47.2]} 24... Nc4 {[%clk
0:00:34.1]} 25. Qc5 {[%clk 0:01:48]} 25... Nxb2 {[%clk 0:00:31.7]} 26. Rd4
{[%clk 0:00:39.5]} 26... Rd8 {[%clk 0:00:29.6]} 27. Nd6 {[%clk 0:00:29]} 27...
Qxe7 {[%clk 0:00:14]} 28. Nf5+ {[%clk 0:00:29.8]} 28... gxf5 {[%clk 0:00:15.2]}
29. Qxe7 {[%clk 0:00:31.4]} 29... Rxd4 {[%clk 0:00:16.9]} 30. Rxe6 {[%clk
0:00:32.8]} 1-0

[Event "*** Titled Tuesday Blitz"]
[Site "Chess.com"]
[Date "2019.05.07"]
[Round "3"]
[White "severomorskij"]
[Black "platy3"]
[Result "1/2-1/2"]
[WhiteElo "2773"]
[BlackElo "2764"]
[TimeControl "180+2"]
[EndTime "13:38:23 PDT"]
[Termination "Game drawn by repetition"]

1. d4 {[%clk 0:03:01.9]} 1... Nf6 {[%clk 0:02:57.3]} 2. c4 {[%clk 0:03:01.5]}
2... g6 {[%clk 0:02:58.6]} 3. Nc3 {[%clk 0:03:02.5]} 3... Bg7 {[%clk 0:02:59.2]}
4. e4 {[%clk 0:03:03.4]} 4... d6 {[%clk 0:03:00.9]} 5. Bd3 {[%clk 0:03:04.4]}
5... O-O {[%clk 0:02:55.6]} 6. Nge2 {[%clk 0:03:05.3]} 6... e5 {[%clk
0:02:56.3]} 7. d5 {[%clk 0:03:06]} 7... a5 {[%clk 0:02:57.5]} 8. O-O {[%clk
0:03:06.5]} 8... Na6 {[%clk 0:02:58.7]} 9. a3 {[%clk 0:03:02.5]} 9... Bd7 {[%clk
0:02:56.7]} 10. Bc2 {[%clk 0:02:51.6]} 10... Nc5 {[%clk 0:02:48.9]} 11. b3
{[%clk 0:02:47]} 11... Ne8 {[%clk 0:02:49.3]} 12. Rb1 {[%clk 0:02:41]} 12... f5
{[%clk 0:02:49.8]} 13. exf5 {[%clk 0:02:41.9]} 13... gxf5 {[%clk 0:02:51.7]} 14.
b4 {[%clk 0:02:43]} 14... axb4 {[%clk 0:02:53.6]} 15. axb4 {[%clk 0:02:44.1]}
15... Na6 {[%clk 0:02:55.2]} 16. f4 {[%clk 0:02:41]} 16... Qe7 {[%clk
0:02:51.4]} 17. fxe5 {[%clk 0:02:32.4]} 17... dxe5 {[%clk 0:02:52.1]} 18. c5
{[%clk 0:02:31.1]} 18... Nxc5 {[%clk 0:02:04.5]} 19. bxc5 {[%clk 0:02:30.9]}
19... Qxc5+ {[%clk 0:02:06.4]} 20. Kh1 {[%clk 0:02:31.5]} 20... e4 {[%clk
0:02:08]} 21. Bb2 {[%clk 0:01:44.7]} 21... Nd6 {[%clk 0:02:08.3]} 22. Na4 {[%clk
0:01:26.7]} 22... Bxa4 {[%clk 0:02:05.4]} 23. Bxa4 {[%clk 0:01:27.5]} 23... Bxb2
{[%clk 0:02:02.7]} 24. Rxb2 {[%clk 0:01:28.5]} 24... Qa3 {[%clk 0:02:00.9]} 25.
Qc1 {[%clk 0:01:06.2]} 25... Rxa4 {[%clk 0:01:58.1]} 26. Qg5+ {[%clk 0:00:55.8]}
26... Kh8 {[%clk 0:01:58.6]} 27. Rc2 {[%clk 0:00:57]} 27... Rc4 {[%clk
0:00:58.7]} 28. Nf4 {[%clk 0:00:36.6]} 28... Rxc2 {[%clk 0:00:48.4]} 29. Ng6+
{[%clk 0:00:34.8]} 29... Kg7 {[%clk 0:00:31.9]} 30. Ne5+ {[%clk 0:00:34.4]}
30... Kh8 {[%clk 0:00:32.7]} 31. Ng6+ {[%clk 0:00:30.3]} 31... Kg8 {[%clk
0:00:31.2]} 32. Ne5+ {[%clk 0:00:28.2]} 32... Kh8 {[%clk 0:00:32.3]} 33. Ng6+
{[%clk 0:00:29.3]} 33... hxg6 {[%clk 0:00:32.8]} 34. Qh6+ {[%clk 0:00:29.4]}
34... Kg8 {[%clk 0:00:34.2]} 35. Qxg6+ {[%clk 0:00:30.6]} 35... Kh8 {[%clk
0:00:35.8]} 36. Qh6+ {[%clk 0:00:31.8]} 36... Kg8 {[%clk 0:00:37.3]} 37. Qg6+
{[%clk 0:00:33]} 37... Kh8 {[%clk 0:00:38.9]} 38. Qh6+ {[%clk 0:00:34.1]} 38...
Kg8 {[%clk 0:00:40.4]} 39. Qg6+ {[%clk 0:00:35.5]} 1/2-1/2

[Event "*** Titled Tuesday Blitz"]
[Site "Chess.com"]
[Date "2019.05.07"]
[Round "3"]
[White "IIIlllII1llIl"]
[Black "DanielRensch"]
[Result "1-0"]
[WhiteElo "2729"]
[BlackElo "2450"]
[TimeControl "180+2"]
[EndTime "13:38:30 PDT"]
[Termination "IIIlllII1llIl won by resignation"]

1. e4 {[%clk 0:03:01.9]} 1... c5 {[%clk 0:02:17.5]} 2. c3 {[%clk 0:03:02.4]}
2... d6 {[%clk 0:02:18.7]} 3. d4 {[%clk 0:03:03]} 3... Nf6 {[%clk 0:02:19.7]} 4.
Bd3 {[%clk 0:03:03.9]} 4... g6 {[%clk 0:02:20.5]} 5. Ne2 {[%clk 0:03:04.8]} 5...
Bg7 {[%clk 0:02:21.7]} 6. O-O {[%clk 0:03:05.5]} 6... O-O {[%clk 0:02:22.3]} 7.
f3 {[%clk 0:02:57]} 7... a6 {[%clk 0:02:20.4]} 8. Be3 {[%clk 0:02:55.1]} 8...
Qc7 {[%clk 0:02:21.4]} 9. Nd2 {[%clk 0:02:50.1]} 9... b6 {[%clk 0:02:22.5]} 10.
Qe1 {[%clk 0:02:45.4]} 10... Nc6 {[%clk 0:02:23.5]} 11. a3 {[%clk 0:02:38.5]}
11... Bb7 {[%clk 0:02:24.1]} 12. Qh4 {[%clk 0:02:36]} 12... e5 {[%clk
0:02:09.4]} 13. d5 {[%clk 0:02:32]} 13... Ne7 {[%clk 0:02:08.8]} 14. Bg5 {[%clk
0:02:05.9]} 14... Nexd5 {[%clk 0:01:37.7]} 15. exd5 {[%clk 0:02:06]} 15... Nxd5
{[%clk 0:01:39.6]} 16. c4 {[%clk 0:01:58.8]} 16... f6 {[%clk 0:01:36.8]} 17.
cxd5 {[%clk 0:01:56.6]} 17... fxg5 {[%clk 0:01:36.7]} 18. Qe4 {[%clk 0:00:33]}
18... Rae8 {[%clk 0:01:17.8]} 19. a4 {[%clk 0:00:25.3]} 19... Bc8 {[%clk
0:01:15.1]} 20. Qe3 {[%clk 0:00:22.6]} 20... Bh6 {[%clk 0:01:09.4]} 21. Ne4
{[%clk 0:00:16.2]} 21... Kg7 {[%clk 0:01:07.7]} 22. g4 {[%clk 0:00:13.9]} 22...
Qe7 {[%clk 0:01:08.5]} 23. Kg2 {[%clk 0:00:11.4]} 23... Kg8 {[%clk 0:01:09.5]}
24. Rh1 {[%clk 0:00:11.2]} 24... Kg7 {[%clk 0:01:10.3]} 25. h4 {[%clk
0:00:11.3]} 25... Kg8 {[%clk 0:00:59.9]} 26. hxg5 {[%clk 0:00:12.3]} 26... Bg7
{[%clk 0:01:00.9]} 27. Rh3 {[%clk 0:00:12]} 27... Rf7 {[%clk 0:01:02]} 28. Rah1
{[%clk 0:00:12]} 28... Bh8 {[%clk 0:01:03.6]} 29. N2c3 {[%clk 0:00:08.2]} 29...
Ref8 {[%clk 0:01:04.2]} 30. Qg1 {[%clk 0:00:08.4]} 30... Qd7 {[%clk 0:00:38.9]}
31. Qh2 {[%clk 0:00:07]} 31... Qe8 {[%clk 0:00:37]} 32. Rxh7 {[%clk 0:00:06.7]}
1-0